bitfinex/quotes_BTCUSD_20240712
["timestamp","ask_amount","ask_price","bid_price","bid_amount"]
[1720800380721,0.514914,58262.0,58261.0,0.0970873]
[1720800381585,0.515914,58262.0,58261.0,0.0070873]
[1720800381789,0.515914,58262.0,58261.0,0.0060873]
[1720800382431,0.173638,58262.0,58261.0,0.1050873]
[1720800382640,0.173638,58262.0,58261.0,0.1020873]
[1720800382847,0.171638,58262.0,58261.0,0.0960873]
[1720800383053,0.514914,58262.0,58261.0,0.0090873]
[1720800383260,0.515914,58262.0,58261.0,0.0090873]
[1720800383465,0.001,58262.0,58261.0,0.1020873]
[1720800383671,0.001,58262.0,58261.0,0.0090873]
[1720800383877,0.85919,58262.0,58261.0,0.0090873]
[1720800384075,1.202466,58262.0,58261.0,0.006]
[1720800384275,1.203466,58262.0,58261.0,0.01954865]
[1720800384480,1.203466,58262.0,58261.0,0.006]
[1720800384481,1.202466,58262.0,58261.0,0.006]
[1720800384697,1.202466,58262.0,58259.0,0.009108]
[1720800384698,0.85822,58260.0,58259.0,0.009108]
[1720800384927,1.201508,58260.0,58259.0,0.009108]
[1720800385967,1.201508,58260.0,58259.0,0.019108]
[1720800385968,1.202508,58260.0,58259.0,0.019108]
[1720800386200,1.202508,58260.0,58259.0,0.009108]
[1720800386407,1.3727454,58260.0,58259.0,0.009108]
[1720800386610,1.4358454,58260.0,58259.0,0.009108]
[1720800386816,1.6865454,58260.0,58259.0,0.009108]
[1720800387019,1.516308,58260.0,58259.0,0.009108]
[1720800387257,1.265608,58260.0,58259.0,0.009108]
[1720800387461,1.202508,58260.0,58259.0,0.009108]
[1720800388092,1.203508,58260.0,58259.0,0.015108]
[1720800388314,0.86122,58260.0,58259.0,0.024108]
[1720800388536,0.98169069,58260.0,58259.0,0.018108]
[1720800388747,0.98169069,58260.0,58259.0,0.009108]
[1720800388748,1.97786669,58260.0,58259.0,0.009108]
[1720800388949,2.17886669,58260.0,58259.0,0.015108]
[1720800389142,1.97986669,58260.0,58259.0,0.024108]
[1720800389321,1.97986669,58260.0,58259.0,0.009108]
[1720800389322,2.15976669,58260.0,58259.0,0.009108]
[1720800389680,2.44166669,58260.0,58259.0,0.024108]
[1720800389885,2.54166669,58260.0,58259.0,0.024108]
[1720800390866,1.925777,58257.0,58256.0,0.009108]
[1720800391555,2.2710897,58257.0,58256.0,0.009108]
[1720800391756,1.7794257,58255.0,58254.0,0.009097]
[1720800391957,1.7794257,58255.0,58253.0,0.009097]
[1720800391958,1.4361227,58254.0,58253.0,0.009097]
[1720800392168,1.0928147,58252.0,58251.0,0.011108]
[1720800392377,1.9497221,58252.0,58251.0,0.011108]
[1720800392592,2.2930571,58252.0,58251.0,0.011108]
[1720800393004,2.0930571,58252.0,58251.0,0.011108]
[1720800393223,0.858337,58252.0,58251.0,0.011108]
[1720800393441,1.201672,58252.0,58251.0,0.011108]
[1720800394458,1.202672,58252.0,58251.0,0.011108]
[1720800394799,2.039707,58252.0,58251.0,0.011108]
[1720800395020,2.2109444,58252.0,58251.0,0.011108]
[1720800395635,1.516472,58252.0,58251.0,0.011108]
[1720800395832,1.52709169,58252.0,58251.0,0.011108]
[1720800396250,1.21429169,58252.0,58251.0,0.011108]
[1720800398136,0.01261969,58252.0,58251.0,0.0141953]
[1720800398339,0.52762169,58252.0,58251.0,0.0141953]
[1720800398539,0.01261969,58252.0,58251.0,0.11475561]
[1720800398747,0.52762169,58252.0,58251.0,0.11475561]
[1720800399294,0.52762169,58252.0,58251.0,0.01866831]
[1720800399295,0.86995669,58252.0,58251.0,0.01866831]
[1720800399496,1.33502401,58252.0,58251.0,0.01866831]
[1720800399790,1.33502401,58252.0,58251.0,0.011108]
[1720800399791,1.64772401,58252.0,58251.0,0.011108]
[1720800400133,1.64672401,58252.0,58251.0,0.011108]
[1720800400538,1.64772401,58252.0,58251.0,0.017108]
[1720800400939,2.17095901,58252.0,58251.0,0.011108]
[1720800401195,1.201735,58249.0,58248.0,0.009108]
[1720800401568,1.725988,58249.0,58248.0,0.009108]
[1720800402521,1.201777,58247.0,58246.0,0.0060782]
[1720800404893,1.202777,58247.0,58246.0,0.0100782]
[1720800405102,1.3730144,58247.0,58246.0,0.0100782]
[1720800405297,1.3740144,58247.0,58246.0,0.0160782]
[1720800406499,1.40090558,58247.0,58246.0,0.0160782]
[1720800408249,1.23066818,58247.0,58246.0,0.0160782]
[1720800411841,1.65323318,58247.0,58246.0,0.0160782]
[1720800412832,1.85323318,58247.0,58246.0,0.0160782]
[1720800413010,1.65323318,58247.0,58246.0,0.0160782]
[1720800413845,2.07157099,58247.0,58246.0,0.0160782]
[1720800414047,2.07157099,58247.0,58231.0,0.002]
[1720800414048,2.07157099,58247.0,58233.0,0.0825]
[1720800414049,0.17172,58234.0,58233.0,0.0825]
[1720800414245,0.54205218,58234.0,58233.0,0.0825]
[1720800414445,1.202085,58232.0,58231.0,0.002]
[1720800414648,1.22897618,58232.0,58231.0,0.002]
[1720800415720,1.82312918,58232.0,58231.0,0.002]
[1720800416449,1.82412918,58232.0,58231.0,0.005]
[1720800417078,1.99436658,58232.0,58231.0,0.005]
[1720800417974,1.99336658,58232.0,58231.0,0.002]
[1720800418176,1.99436658,58232.0,58231.0,0.002]
[1720800418385,1.99536658,58232.0,58231.0,0.002]
[1720800419102,2.05616658,58232.0,58231.0,0.002]
[1720800419303,2.25616658,58232.0,58231.0,0.002]
[1720800419504,2.29359877,58232.0,58231.0,0.002]
[1720800420427,2.52599809,58232.0,58231.0,0.002]
[1720800420632,1.745619,58229.0,58228.0,0.009108]
[1720800420834,1.77251018,58229.0,58228.0,0.009108]
[1720800421030,1.57251018,58229.0,58228.0,0.009108]
[1720800421233,1.57251018,58229.0,58224.0,0.0117186]
[1720800421234,1.545727,58225.0,58224.0,0.0117186]
[1720800421514,1.99355558,58225.0,58224.0,0.0117186]
[1720800422737,2.96982659,58225.0,58224.0,0.0117186]
[1720800422937,2.96982659,58225.0,58216.0,0.21476028]
[1720800422938,0.858855,58217.0,58216.0,0.21476028]
[1720800423139,1.22928818,58217.0,58216.0,0.21476028]
[1720800423292,1.22928818,58217.0,58216.0,0.22234922]
[1720800423510,1.22928818,58217.0,58216.0,0.21476028]
[1720800423915,1.22928818,58217.0,58216.0,0.37334758]
[1720800423916,0.02689118,58217.0,58216.0,0.37334758]
[1720800424121,0.10261808,58229.0,58216.0,0.37334758]
[1720800424122,0.01035761,58232.0,58230.0,0.0030873]
[1720800424325,0.88555188,58231.0,58230.0,0.0010873]
[1720800424523,0.88555188,58231.0,58230.0,0.2351873]
[1720800424524,0.02689988,58231.0,58230.0,0.2351873]
[1720800424725,0.343431,58236.0,58230.0,0.2351873]
[1720800424726,0.858577,58236.0,58235.0,0.0796873]
[1720800425105,0.88547177,58236.0,58235.0,0.0786873]
[1720800425375,0.88547177,58236.0,58235.0,0.1706873]
[1720800425376,0.02689477,58236.0,58235.0,0.1706873]
[1720800425558,0.02689477,58236.0,58226.0,0.14511435]
[1720800425559,0.171688,58245.0,58244.0,0.0010873]
[1720800425678,0.5419556,58245.0,58244.0,0.1537873]
[1720800425885,0.8853346,58245.0,58244.0,0.1537873]
[1720800426145,0.5419556,58245.0,58244.0,0.1527873]
[1720800426347,0.03733908,58245.0,58244.0,0.1527873]
[1720800426556,0.03733908,58245.0,58244.0,0.51144903]
[1720800426557,0.01044848,58245.0,58244.0,0.51144903]
[1720800426751,0.01044848,58245.0,58244.0,0.1527873]
[1720800426951,0.01742811,58247.0,58245.0,0.093]
[1720800427156,0.01742811,58247.0,58246.0,0.264685]
[1720800427364,0.01742811,58247.0,58246.0,0.951427]
[1720800427516,0.01742811,58247.0,58246.0,1.353798]
[1720800427718,0.01742811,58247.0,58246.0,0.263685]
[1720800427945,0.01742811,58247.0,58246.0,0.091]
[1720800428346,0.01842811,58247.0,58246.0,0.686756]
[1720800428546,0.01742811,58247.0,58246.0,1.030127]
[1720800428744,0.01742811,58247.0,58246.0,1.033127]
[1720800428745,0.01842811,58247.0,58246.0,1.033127]
[1720800429167,0.01942811,58247.0,58246.0,0.42116277]
[1720800429368,0.01842811,58247.0,58246.0,0.41816277]
[1720800429905,0.01742811,58247.0,58246.0,0.24247777]
[1720800430176,0.01742811,58247.0,58246.0,0.41416277]
[1720800430518,0.01742811,58247.0,58246.0,0.24247777]
[1720800430719,0.01742811,58247.0,58246.0,0.24647777]
[1720800430720,0.03733812,58247.0,58246.0,0.24647777]
[1720800430921,0.53347511,58247.0,58246.0,0.24647777]
[1720800431323,0.18911011,58247.0,58246.0,0.2349]
[1720800431509,0.18911011,58247.0,58246.0,0.24647594]
[1720800431510,0.19011011,58247.0,58246.0,0.24647594]
[1720800431908,1.30819297,58247.0,58246.0,0.15547594]
[1720800432133,0.87684011,58247.0,58246.0,0.09227594]
[1720800432333,0.87584011,58247.0,58246.0,0.0807]
[1720800432535,0.87584011,58247.0,58246.0,0.0947]
[1720800432536,0.87684011,58247.0,58246.0,0.0947]
[1720800432741,1.24709362,58247.0,58246.0,0.004]
[1720800433126,1.24709362,58247.0,58246.0,0.018]
[1720800433127,0.98170206,58247.0,58246.0,0.018]
[1720800433326,0.90372862,58247.0,58246.0,0.004]
[1720800433528,1.32406706,58247.0,58246.0,0.004]
[1720800433768,0.98170206,58247.0,58246.0,0.018]
[1720800433975,0.90372862,58247.0,58246.0,0.014]
[1720800434179,0.04531662,58247.0,58246.0,0.105]
[1720800434377,0.04631662,58247.0,58246.0,0.765656]
[1720800434606,0.01942811,58247.0,58246.0,0.42985023]
[1720800435016,0.01842811,58247.0,58246.0,0.25416523]
[1720800435187,0.01742811,58247.0,58246.0,0.75922123]
[1720800435430,0.01842811,58247.0,58246.0,0.75922123]
[1720800436554,0.01942811,58247.0,58246.0,0.77322123]
[1720800437043,0.01942811,58247.0,58246.0,0.16716523]
[1720800437263,0.24244882,58247.0,58246.0,0.10506523]
[1720800437484,0.92917882,58247.0,58246.0,0.10506523]
[1720800437720,0.92917716,58247.0,58246.0,0.10506523]
[1720800437983,0.87784011,58247.0,58246.0,0.10506523]
[1720800438182,0.87784011,58247.0,58246.0,0.0975]
[1720800438183,0.58581218,58247.0,58246.0,0.0975]
[1720800438396,0.58581218,58247.0,58246.0,0.21006602]
[1720800438397,0.58681218,58247.0,58246.0,0.21006602]
[1720800438813,0.58680966,58247.0,58246.0,0.11906602]
[1720800438995,1.03699466,58247.0,58246.0,0.03956602]
[1720800439309,1.06388262,58247.0,58246.0,0.03956602]
[1720800439532,0.17566622,58247.0,58246.0,0.032]
[1720800439800,0.17566622,58247.0,58246.0,0.123]
[1720800439801,0.14998801,58247.0,58246.0,0.123]
[1720800439994,0.15305174,58247.0,58246.0,0.032]
[1720800440280,0.29784578,58247.0,58246.0,0.03956634]
[1720800440519,0.90572848,58247.0,58246.0,0.03956634]
[1720800440769,0.90572848,58247.0,58246.0,0.13056634]
[1720800440770,0.69071363,58247.0,58246.0,0.13056634]
[1720800440998,0.56236348,58247.0,58246.0,0.032]
[1720800441263,0.56236348,58247.0,58246.0,0.13056634]
[1720800441264,0.56542701,58247.0,58246.0,0.13056634]
[1720800441495,0.66503409,58247.0,58246.0,0.13056634]
[1720800441738,0.66503408,58247.0,58246.0,0.13056634]
[1720800441966,0.56236348,58247.0,58246.0,0.03956634]
[1720800442679,0.69070174,58247.0,58246.0,0.032]
[1720800442933,0.69070174,58247.0,58246.0,0.03956634]
[1720800442934,1.13747281,58247.0,58246.0,0.03956634]
[1720800443178,1.20127281,58247.0,58246.0,0.03956634]
[1720800443468,1.45202855,58247.0,58246.0,0.032]
[1720800443695,1.79533852,58247.0,58246.0,0.032]
[1720800443928,1.79533852,58247.0,58232.0,0.062]
[1720800443929,1.201984,58237.0,58232.0,0.0832]
[1720800444399,1.201984,58237.0,58230.0,0.7859]
[1720800444400,1.22887237,58237.0,58230.0,0.7859]
[1720800444637,1.22887237,58237.0,58236.0,0.48177468]
[1720800444873,1.22887237,58237.0,58227.0,0.08]
[1720800444874,0.858692,58228.0,58227.0,0.08]
[1720800445106,0.93572437,58228.0,58227.0,0.08]
[1720800445347,0.93572437,58228.0,58221.0,0.091]
[1720800445348,0.21939198,58228.0,58221.0,0.091]
[1720800445589,0.21939198,58228.0,58220.0,0.4742]
[1720800445590,0.27445422,58227.0,58226.0,0.068854]
[1720800445812,0.171753,58223.0,58222.0,0.091]
[1720800446408,0.05135601,58224.0,58223.0,0.091]
[1720800446615,0.22310301,58225.0,58224.0,0.091]
[1720800447025,0.05135601,58225.0,58224.0,0.091]
[1720800447230,0.05441954,58225.0,58224.0,0.09]
[1720800447435,0.05135269,58225.0,58224.0,0.09]
[1720800447650,0.0614,58223.0,58220.0,0.5642]
[1720800447863,0.515295,58219.0,58218.0,0.0053406]
[1720800448063,0.91018115,58219.0,58218.0,0.0053406]
[1720800448269,0.96153039,58219.0,58218.0,0.0053406]
[1720800448470,1.22925664,58219.0,58218.0,0.0053406]
[1720800448673,1.35763838,58219.0,58218.0,0.0053406]
[1720800448880,1.86060259,58219.0,58218.0,0.0053406]
[1720800449086,2.01468248,58219.0,58218.0,0.0053406]
[1720800449704,2.01568248,58219.0,58218.0,0.0053406]
[1720800449843,2.18591988,58219.0,58218.0,0.0053406]
[1720800450043,2.03183999,58219.0,58218.0,0.0053406]
[1720800450252,2.17533999,58219.0,58218.0,0.0053406]
[1720800450470,2.33922404,58219.0,58218.0,0.0053406]
[1720800450699,2.43189225,58219.0,58218.0,0.0053406]
[1720800450929,2.39422404,58219.0,58218.0,0.0053406]
[1720800451132,2.58512556,58219.0,58218.0,0.0053406]
[1720800451348,3.10875482,58219.0,58218.0,0.0053406]
[1720800451563,2.95581805,58219.0,58218.0,0.0053406]
[1720800451779,2.027039,58217.0,58216.0,0.06372866]
[1720800451980,2.57554665,58217.0,58216.0,0.06372866]
[1720800452184,2.67554665,58217.0,58216.0,0.06372866]
[1720800452584,2.62941385,58217.0,58216.0,0.06372866]
[1720800452893,2.47554665,58217.0,58216.0,0.06372866]
[1720800453093,2.48654665,58217.0,58216.0,0.06372866]
[1720800453344,1.68300465,58217.0,58216.0,0.06372866]
[1720800453580,1.63504064,58217.0,58216.0,0.06372866]
[1720800453698,2.07027405,58217.0,58216.0,0.06372866]
[1720800453905,1.95611352,58217.0,58216.0,0.06372866]
[1720800454558,1.78587612,58217.0,58216.0,0.06372866]
[1720800454760,1.91400278,58217.0,58216.0,0.06372866]
[1720800454965,1.85180278,58217.0,58216.0,0.06372866]
[1720800455171,1.77531763,58217.0,58216.0,0.06372866]
[1720800455379,2.25375945,58217.0,58216.0,0.06372866]
[1720800455613,2.25375945,58217.0,58216.0,0.02600866]
[1720800455614,2.77349685,58217.0,58216.0,0.02600866]
[1720800455846,2.84749685,58217.0,58216.0,0.02600866]
[1720800456253,2.85049685,58217.0,58216.0,0.02600866]
[1720800456507,2.84749685,58217.0,58216.0,0.02600866]
[1720800456950,2.85815186,58217.0,58216.0,0.02600866]
[1720800457293,2.98617562,58217.0,58216.0,0.02600866]
[1720800457489,2.85815186,58217.0,58216.0,0.02600866]
[1720800458702,2.9861656,58217.0,58216.0,0.02600866]
[1720800458933,2.98634031,58217.0,58216.0,0.02600866]
[1720800459140,2.85836139,58217.0,58216.0,0.02600866]
[1720800459333,2.66072427,58217.0,58216.0,0.02600866]
[1720800459545,2.66072427,58217.0,58211.0,0.002]
[1720800459546,2.171098,58201.0,58200.0,0.009108]
[1720800459748,2.171098,58201.0,58195.0,0.51068611]
[1720800459749,0.171833,58196.0,58195.0,0.51068611]
[1720800459951,0.171833,58196.0,58191.0,0.002]
[1720800459952,0.171841,58193.0,58191.0,0.002]
[1720800460162,1.202911,58192.0,58191.0,0.002]
[1720800460365,1.5466,58192.0,58191.0,0.002]
[1720800460960,1.202911,58192.0,58191.0,0.002]
[1720800461343,1.68383738,58192.0,58191.0,0.002]
[1720800461765,1.202911,58192.0,58191.0,0.002]
[1720800462124,1.5466,58192.0,58191.0,0.002]
[1720800462826,1.202911,58192.0,58191.0,0.002]
[1720800463042,1.202911,58192.0,58191.0,0.092]
[1720800463043,0.515533,58192.0,58191.0,0.092]
[1720800463216,0.515533,58192.0,58191.0,0.002]
[1720800463471,1.202911,58192.0,58191.0,0.002]
[1720800463784,0.859222,58192.0,58191.0,0.002]
[1720800464662,1.202911,58192.0,58191.0,0.002]
[1720800465033,1.21330894,58192.0,58191.0,0.002]
[1720800465241,0.86961994,58192.0,58191.0,0.002]
[1720800465493,1.21330894,58192.0,58191.0,0.002]
[1720800466219,1.70889883,58192.0,58191.0,0.002]
[1720800466888,1.55699794,58192.0,58191.0,0.002]
[1720800468566,1.21330894,58192.0,58191.0,0.002]
[1720800468973,0.86961994,58192.0,58191.0,0.002]
[1720800469180,1.21330894,58192.0,58191.0,0.002]
[1720800470835,1.55699794,58192.0,58191.0,0.002]
[1720800471019,1.72723534,58192.0,58191.0,0.002]
[1720800472227,1.21330894,58192.0,58191.0,0.002]
[1720800473233,1.21330894,58192.0,58191.0,0.1486]
[1720800474745,0.343661,58197.0,58191.0,0.1486]
[1720800474746,0.343666,58196.0,58195.0,0.09]
[1720800474942,0.515508,58195.0,58194.0,0.09]
[1720800475138,0.515481,58198.0,58197.0,0.09]
[1720800475287,0.2447,58199.0,58197.0,0.09]
[1720800475288,0.416525,58199.0,58197.0,0.1661]
[1720800475489,0.171827,58198.0,58197.0,0.17486511]
[1720800475851,0.01046584,58206.0,58204.0,0.06]
[1720800475852,0.2447,58205.0,58204.0,0.06]
[1720800476058,0.18226984,58206.0,58199.0,0.0827]
[1720800476059,0.01046584,58206.0,58205.0,0.405106]
[1720800476242,0.2447,58211.0,58205.0,0.405106]
[1720800476243,0.2447,58211.0,58210.0,0.09]
[1720800476441,0.2447,58211.0,58205.0,0.1433]
[1720800476442,0.343559,58215.0,58208.0,0.09]
[1720800476642,0.515365,58211.0,58210.0,0.09]
[1720800476880,0.343568,58213.0,58211.0,0.09]
[1720800477117,0.2447,58216.0,58215.0,0.09]
[1720800477535,0.2447,58216.0,58215.0,0.0987454]
[1720800477952,0.343524,58220.0,58215.0,0.0987454]
[1720800477953,0.171765,58219.0,58218.0,0.09]
[1720800478157,0.588215,58222.0,58219.0,0.09]
[1720800478158,0.17176,58221.0,58219.0,0.09]
[1720800478335,0.17176,58221.0,58218.0,0.17404351]
[1720800478603,0.2447,58222.0,58221.0,0.089]
[1720800478805,0.171753,58223.0,58222.0,0.089]
[1720800479007,0.515259,58223.0,58222.0,0.089]
[1720800479207,0.18229386,58225.0,58222.0,0.15924099]
[1720800479414,0.18229386,58225.0,58222.0,0.00874099]
[1720800479415,0.515259,58223.0,58222.0,0.00874099]
[1720800479844,0.171759,58221.0,58220.0,0.089]
[1720800480084,0.3055,58229.0,58228.0,0.089]
[1720800480284,0.3055,58236.0,58223.0,0.089]
[1720800480459,0.3055,58236.0,58222.0,0.00873422]
[1720800480460,0.343494,58226.0,58222.0,0.089]
[1720800480663,0.03055,58235.0,58226.0,0.089]
[1720800480873,0.3055,58236.0,58230.0,0.079]
[1720800481085,0.343436,58235.0,58230.0,0.079]
[1720800481291,0.171729,58231.0,58230.0,0.079]
[1720800481504,0.515188,58231.0,58230.0,0.079]
[1720800481721,0.171727,58232.0,58230.0,0.079]
[1720800481944,0.3055,58236.0,58230.0,0.079]
[1720800481945,0.648932,58236.0,58232.0,0.089]
[1720800482165,0.171711,58238.0,58237.0,0.089]
[1720800482374,0.515129,58238.0,58237.0,0.089]
[1720800482793,0.6009832,58238.0,58237.0,0.089]
[1720800482998,0.61152486,58238.0,58237.0,0.089]
[1720800483621,0.343424,58237.0,58234.0,0.06]
[1720800483836,0.09639586,58238.0,58230.0,0.079]
[1720800483837,0.515188,58231.0,58230.0,0.079]
[1720800484045,0.858647,58231.0,58230.0,0.079]
[1720800485222,0.515206,58229.0,58228.0,0.089]
[1720800485450,0.858692,58228.0,58227.0,0.4742]
[1720800485656,1.202169,58228.0,58227.0,0.4742]
[1720800486750,0.3055,58229.0,58227.0,0.4742]
[1720800486751,0.171737,58229.0,58227.0,0.4742]
[1720800486970,0.171737,58229.0,58228.0,0.089]
[1720800487240,0.171737,58229.0,58227.0,0.4742]
[1720800487241,0.858692,58228.0,58227.0,0.4742]
[1720800487422,0.01034515,58231.0,58219.0,0.0766]
[1720800487423,0.171759,58221.0,58219.0,0.0766]
[1720800487638,0.515277,58221.0,58219.0,0.0766]
[1720800488079,0.171759,58221.0,58220.0,0.1512]
[1720800488304,0.515277,58221.0,58220.0,0.1512]
[1720800488498,0.171759,58221.0,58220.0,0.1512]
[1720800489094,0.171759,58221.0,58220.0,0.07091384]
[1720800489270,0.9446715,58221.0,58220.0,0.00871384]
[1720800489455,0.171759,58221.0,58220.0,0.09771384]
[1720800489841,0.343507,58223.0,58220.0,0.09771384]
[1720800489842,0.171756,58222.0,58220.0,0.09771384]
[1720800490024,0.171756,58222.0,58221.0,0.089]
[1720800490241,0.515268,58222.0,58221.0,0.089]
[1720800490442,0.515268,58222.0,58221.0,0.09771123]
[1720800490596,0.9790066,58222.0,58221.0,0.00871123]
[1720800490802,0.85878,58222.0,58221.0,0.00871123]
[1720800491023,0.85881,58220.0,58219.0,0.0766]
[1720800491231,0.9790422,58220.0,58219.0,0.0766]
[1720800491431,0.85887,58216.0,58215.0,0.1433]
[1720800491584,0.85887,58216.0,58210.0,0.4742]
[1720800491585,0.171788,58211.0,58210.0,0.6129]
[1720800491788,0.515365,58211.0,58210.0,0.5521]
[1720800492251,0.858942,58211.0,58210.0,0.5521]
[1720800492452,0.515365,58211.0,58210.0,0.6411]
[1720800493098,0.858942,58211.0,58210.0,0.6411]
[1720800493297,0.515365,58211.0,58210.0,0.6411]
[1720800493721,0.515365,58211.0,58210.0,0.5521]
[1720800493866,0.858942,58211.0,58210.0,0.5521]
[1720800494719,0.515365,58211.0,58210.0,0.6411]
[1720800495072,0.858942,58211.0,58210.0,0.6411]
[1720800495479,1.202519,58211.0,58210.0,0.5521]
[1720800495692,1.202519,58211.0,58210.0,0.4742]
[1720800495693,1.3227701,58211.0,58210.0,0.4742]
[1720800496102,1.202519,58211.0,58210.0,0.4742]
[1720800496310,0.859032,58205.0,58204.0,0.1694]
[1720800496519,0.3693,58214.0,58207.0,0.089]
[1720800496520,0.171797,58208.0,58207.0,0.089]
[1720800496718,0.515392,58208.0,58207.0,0.089]
[1720800497143,0.858987,58208.0,58207.0,0.089]
[1720800497550,0.171792,58210.0,58209.0,0.089]
[1720800497756,0.515375,58210.0,58209.0,0.089]
[1720800498174,0.171774,58216.0,58215.0,0.089]
[1720800498595,0.171774,58216.0,58215.0,0.09772443]
[1720800498794,0.515322,58216.0,58215.0,0.00872443]
[1720800498996,0.515322,58216.0,58215.0,0.09772443]
[1720800499210,0.515322,58216.0,58215.0,0.089]
[1720800499432,0.515374,58210.0,58209.0,0.082]
[1720800499653,0.343595,58208.0,58206.0,0.089]
[1720800499849,0.515374,58210.0,58209.0,0.00872822]
[1720800500052,0.858957,58210.0,58209.0,0.00872822]
[1720800500258,0.515392,58208.0,58207.0,0.089]
[1720800500432,0.858987,58208.0,58207.0,0.089]
[1720800501257,0.171797,58208.0,58207.0,0.089]
[1720800501602,0.171797,58208.0,58207.0,0.09772948]
[1720800502066,0.858987,58208.0,58207.0,0.09772948]
[1720800504464,0.515392,58208.0,58207.0,0.09772948]
[1720800504683,0.2445,58212.0,58211.0,0.089]
[1720800504684,0.416285,58212.0,58211.0,0.089]
[1720800505038,0.515356,58212.0,58211.0,0.089]
[1720800505259,0.00306353,58215.0,58214.0,0.089]
[1720800505465,0.05120277,58223.0,58214.0,0.089]
[1720800505466,0.00306353,58217.0,58216.0,0.604322]
[1720800505670,0.00306353,58217.0,58216.0,0.1696]
[1720800505878,0.00306353,58217.0,58216.0,0.1783238]
[1720800506111,0.171763,58220.0,58218.0,0.089]
[1720800506330,0.171763,58220.0,58219.0,0.089]
[1720800506740,0.171763,58220.0,58219.0,0.09773166]
[1720800506947,1.2882143,58220.0,58219.0,0.00873166]
[1720800507208,0.515322,58216.0,58215.0,0.089]
[1720800507591,0.85887,58216.0,58215.0,0.09772985]
[1720800507933,0.2445,58220.0,58219.0,0.089]
[1720800508160,0.416262,58220.0,58219.0,0.089]
[1720800508364,0.416262,58220.0,58215.0,0.52405285]
[1720800508365,0.416262,58220.0,58218.0,0.089]
[1720800508561,0.00306353,58219.0,58218.0,0.089]
[1720800508940,0.416262,58220.0,58219.0,0.089]
[1720800509326,0.171765,58219.0,58218.0,0.089]
[1720800509744,0.00306353,58219.0,58218.0,0.089]
[1720800510176,0.416262,58220.0,58219.0,0.089]
[1720800510350,0.44316153,58220.0,58219.0,0.089]
[1720800510551,0.171768,58218.0,58215.0,0.089]
[1720800510791,0.27139953,58220.0,58212.0,0.0762]
[1720800510792,0.343548,58216.0,58212.0,0.0762]
[1720800511058,0.171782,58213.0,58212.0,0.1652]
[1720800511433,0.858912,58213.0,58212.0,0.0762]
[1720800512041,0.88994973,58213.0,58212.0,0.0762]
[1720800512246,0.858942,58211.0,58210.0,0.089]
[1720800512473,0.515392,58208.0,58207.0,0.0825]
[1720800512670,0.1718,58207.0,58206.0,0.4742]
[1720800512899,0.515401,58207.0,58206.0,0.4742]
[1720800513254,0.859002,58207.0,58206.0,0.4742]
[1720800513474,0.88590756,58207.0,58206.0,0.4742]
[1720800513671,0.88590756,58207.0,58199.0,0.157886]
[1720800513672,0.171821,58200.0,58199.0,0.157886]
[1720800513898,0.515463,58200.0,58199.0,0.157886]
[1720800514079,0.515463,58200.0,58199.0,0.089]
[1720800514677,0.515463,58200.0,58199.0,0.09773954]
[1720800515081,0.171819,58201.0,58199.0,0.09773954]
[1720800515427,0.515447,58202.0,58201.0,0.089]
[1720800515906,0.515447,58202.0,58201.0,0.09773828]
[1720800516132,0.00306353,58203.0,58202.0,0.747045]
[1720800516307,0.39487968,58211.0,58202.0,0.747045]
[1720800516308,0.171795,58209.0,58208.0,0.089]
[1720800516506,0.19870068,58209.0,58208.0,0.089]
[1720800516912,0.19870068,58209.0,58203.0,0.089]
[1720800516913,0.12508285,58209.0,58203.0,0.089]
[1720800517116,0.12508285,58209.0,58208.0,0.00793988]
[1720800517117,0.171794,58209.0,58208.0,0.00793988]
[1720800517371,0.171807,58205.0,58203.0,0.089]
[1720800517547,0.171807,58205.0,58202.0,0.1426]
[1720800517548,0.171807,58205.0,58204.0,0.089]
[1720800517706,0.171809,58204.0,58203.0,0.089]
[1720800518112,0.343619,58204.0,58203.0,0.089]
[1720800518481,0.54233536,58204.0,58203.0,0.089]
[1720800519265,0.54233536,58204.0,58203.0,0.09694274]
[1720800520063,0.54233536,58204.0,58203.0,0.00794274]
[1720800520447,1.0118354,58204.0,58203.0,0.00794274]
[1720800520757,0.515445,58202.0,58201.0,0.089]
[1720800521007,0.54235136,58202.0,58201.0,0.089]
[1720800524771,0.19872436,58201.0,58200.0,0.089]
[1720800524973,0.19872436,58201.0,58200.0,0.604463]
[1720800524974,0.02690636,58201.0,58200.0,0.604463]
[1720800525190,0.171801,58207.0,58204.0,0.089]
[1720800525191,0.05140884,58207.0,58204.0,0.089]
[1720800525394,0.05140884,58207.0,58206.0,0.260803]
[1720800525661,0.02690461,58207.0,58206.0,0.260803]
[1720800526261,0.02690461,58207.0,58206.0,0.089]
[1720800526416,0.07831345,58207.0,58206.0,0.089]
[1720800526625,0.02690461,58207.0,58206.0,0.260803]
[1720800526806,0.07831345,58207.0,58206.0,0.260803]
[1720800527427,0.07830939,58207.0,58206.0,1.029117]
[1720800527646,0.01737308,58211.0,58206.0,1.029117]
[1720800527647,0.01737308,58211.0,58210.0,0.604374]
[1720800527887,0.04427488,58211.0,58210.0,0.947957]
[1720800528358,0.04427488,58211.0,58210.0,1.029057]
[1720800528570,0.04427488,58211.0,58210.0,1.089857]
[1720800529414,0.04427488,58211.0,58210.0,0.2309]
[1720800529629,0.04427488,58211.0,58198.0,0.1]
[1720800529630,0.171794,58209.0,58208.0,0.089]
[1720800529843,0.51541,58206.0,58205.0,0.089]
[1720800530057,0.96308607,58206.0,58205.0,0.089]
[1720800530258,0.70782467,58206.0,58205.0,0.089]
[1720800530439,0.81937211,58206.0,58205.0,0.089]
[1720800530853,0.81914306,58206.0,58205.0,0.089]
[1720800531212,0.5423118,58206.0,58205.0,0.089]
[1720800531428,0.6452599,58206.0,58205.0,0.089]
[1720800531628,0.5423118,58206.0,58205.0,0.089]